bitfinex-derivatives/quotes_SOLF0:USTF0_20250207
["timestamp","ask_amount","ask_price","bid_price","bid_amount"]
[1738940856123,4.9898,200.32,200.25,4.9914]
[1738940856350,34.6738902,200.36,200.21,34.6738902]
[1738940856633,0.03281437,200.31,200.26,0.03222874]
[1738940856823,2.355,200.42,200.29,34.6738902]
[1738940857124,34.6738902,200.48,200.29,34.6738902]
[1738940857332,4.987,200.43,200.36,4.9886]
[1738940857526,34.6738902,200.52,200.33,34.6738902]
[1738940857728,4.9883,200.38,200.31,4.9898]
[1738940858033,34.6738902,200.4,200.3,3.297]
[1738940858223,0.03349334,200.37,200.32,0.03800651]
[1738940858529,4.9892,200.34,200.32,0.03800651]
[1738940858730,34.6738902,200.36,200.17,40.3910902]
[1738940858922,0.03519688,200.35,200.31,7.176e-05]
[1738940859123,2.28039688,200.35,200.31,7.176e-05]
[1738940859325,34.6738902,200.32,200.17,40.3910902]
[1738940859532,34.6738902,200.32,200.17,5.7172]
[1738940859929,34.6738902,200.32,200.17,40.3910902]
[1738940860231,34.6738902,200.28,200.13,34.6738902]
[1738940860429,4.992,200.23,200.22,0.03835108]
[1738940860623,4.992,200.23,200.22,5.108e-05]
[1738940860822,34.6738902,200.32,200.13,34.6738902]
[1738940861023,2.2452,200.35,200.17,34.6738902]
[1738940861224,2.2452,200.35,200.21,34.6738902]
[1738940861624,2.2452,200.35,200.18,2.3894]
[1738940861935,0.03253488,200.3,200.26,0.03491081]
[1738940862132,4.9906,200.29,200.26,0.03491081]
[1738940862630,4.9908,200.28,200.26,0.03491081]
[1738940862930,0.03253488,200.3,200.26,0.03491081]
[1738940863333,2.361,200.45,200.29,34.6738902]
[1738940863724,4.987,200.43,200.33,34.6738902]
[1738940863929,2.361,200.45,200.33,34.6738902]
[1738940864634,3.035,200.56,200.37,0.03401533]
[1738940864635,0.03187766,200.41,200.37,0.03401533]
[1738940864936,34.6738902,200.54,200.37,34.70790553]
[1738940865130,4.9854,200.5,200.37,34.6738902]
[1738940865332,0.99755598,200.49,200.37,34.6738902]
[1738940865731,4.9855,200.49,200.37,34.6738902]
[1738940865932,2.361,200.55,200.41,34.6738902]
[1738940866129,0.03326429,200.45,200.41,34.71196834]
[1738940866326,34.6738902,200.58,200.41,34.71196834]
[1738940866527,34.6738902,200.54,200.37,34.6738902]
[1738940866928,34.6738902,200.5,200.35,2.9779]
[1738940867125,34.6738902,200.6,200.37,34.6738902]
[1738940867126,34.6738902,200.54,200.37,34.6738902]
[1738940867337,34.6738902,200.46,200.28,34.6738902]
[1738940867538,34.6738902,200.46,200.43,5.755e-05]
[1738940867736,4.9865,200.45,200.43,5.755e-05]
[1738940868033,34.6738902,200.46,200.28,34.6738902]
[1738940868232,4.987,200.43,200.32,34.6738902]
[1738940868433,2.0787,200.47,200.32,34.6738902]
[1738940868633,34.6738902,200.6,200.22,5.0162]
[1738940868634,34.6738902,200.54,200.36,34.6738902]
[1738940868829,0.03217057,200.42,200.4,34.6738902]
[1738940869035,4.9853,200.5,200.4,34.6738902]
[1738940869237,34.6738902,200.58,200.41,4.9875]
[1738940869436,0.99715809,200.57,200.4,34.6738902]
[1738940869837,4.9843,200.54,200.4,34.6738902]
[1738940870036,0.99715809,200.57,200.44,34.6738902]
[1738940870341,8.111e-05,200.49,200.48,4.9856]
[1738940870639,0.99715809,200.57,200.48,69.3477804]
[1738940870840,70.38907439,200.69,200.48,34.6738902]
[1738940871043,70.38907439,200.69,200.59,34.6738902]
[1738940871441,7.0398,200.79,200.59,39.6567902]
[1738940871743,0.03834064,200.66,200.62,0.03671809]
[1738940872141,34.6738902,200.76,200.62,4.9822]
[1738940872341,7.0398,200.79,200.59,34.6738902]
[1738940872342,4.9797,200.73,200.6,1.8855]
[1738940872537,0.03819819,200.66,200.63,34.6738902]
[1738940872743,1.9744,200.79,200.63,34.6738902]
[1738940873634,1.9744,200.79,200.6,36.5593902]
[1738940873635,1.9744,200.79,200.62,4.9821]
[1738940873840,1.9744,200.79,200.6,36.5593902]
[1738940874145,0.03678101,200.73,200.69,0.03599086]
[1738940874545,34.6738902,200.8,200.6,36.5593902]
[1738940874740,34.6738902,200.8,200.4,323.6738902]
[1738940874741,34.6738902,200.72,200.69,3.14e-06]
[1738940875043,34.6738902,200.72,200.52,34.6738902]
[1738940875243,34.6738902,200.68,200.52,34.6738902]
[1738940875839,34.6738902,200.68,200.5,1.8789]
[1738940876041,34.6738902,200.68,200.58,1.559e-05]
[1738940876042,0.03590568,200.62,200.58,1.559e-05]
[1738940876347,39.6568902,200.59,200.58,1.559e-05]
[1738940876742,34.6738902,200.59,200.44,2.1504]
[1738940876948,4.9858,200.48,200.41,6.8663]
[1738940877146,2.0609,200.58,200.41,1.8789]
[1738940877442,34.6738902,200.68,200.48,34.6738902]
[1738940877637,2.012,200.65,200.48,34.6738902]
[1738940878137,0.0340261,200.59,200.54,0.03715918]
[1738940878948,4.9803,200.7,200.61,4.9824]
[1738940879143,2.012,200.73,200.56,34.6738902]
[1738940879545,4.9809,200.68,200.6,4.9827]
[1738940879850,2.012,200.73,200.56,34.6738902]
[1738940880143,4.9802,200.71,200.6,34.70634685]
[1738940880352,0.03738049,200.64,200.6,0.03245665]
[1738940880650,4.9787,200.77,200.66,4.981]
[1738940880841,1.9322,200.83,200.66,34.6738902]
[1738940881042,1.9322,200.83,200.7,34.6738902]
[1738940881248,4.9793,200.74,200.6,34.6738902]
[1738940881549,34.6738902,200.8,200.6,34.6738902]
[1738940881848,0.03747675,200.69,200.65,0.0345045]
[1738940882346,5.01212375,200.69,200.65,0.0349387]
[1738940882546,0.03152375,200.69,200.65,0.0349387]
[1738940882748,4.9811,200.67,200.65,0.0349387]
[1738940882943,0.03152375,200.69,200.65,0.0349387]
[1738940883947,0.03152375,200.69,200.55,4.935]
[1738940884449,1.956,200.71,200.55,4.935]
[1738940885051,1.956,200.71,200.5,34.6738902]
[1738940885256,0.03737899,200.65,200.61,0.03287843]
[1738940885450,4.9823,200.62,200.61,0.03287843]
[1738940885651,1.956,200.71,200.59,34.6738902]
[1738940885846,3.1066,200.79,200.63,34.6738902]
[1738940886050,34.6738902,200.81,200.67,34.6738902]
[1738940886247,34.6738902,200.81,200.63,34.6738902]
[1738940886447,34.6738902,200.85,200.67,34.6738902]
[1738940886848,5.0626,200.88,200.67,34.6738902]
[1738940887049,4.979,200.75,200.74,1.767e-05]
[1738940887247,0.03448289,200.78,200.63,34.6738902]
[1738940887452,34.6738902,200.82,200.63,34.6738902]
[1738940887955,34.6738902,200.86,200.67,34.6738902]
[1738940888143,5.0626,200.88,200.67,34.6738902]
[1738940888144,0.03420676,200.75,200.7,0.03692344]
[1738940888346,34.6738902,200.82,200.67,34.6738902]
[1738940888552,0.03254995,200.75,200.71,4.98]
[1738940888753,0.03254995,200.75,200.7,0.03618486]
[1738940888946,0.03254995,200.75,200.63,34.6738902]
[1738940889145,4.98,200.71,200.7,0.03400934]
[1738940889457,34.6738902,200.78,200.63,34.6738902]
[1738940889658,5.01755969,200.73,200.68,0.03835077]
[1738940889956,34.6738902,200.74,200.6,34.6738902]
[1738940890252,4.9805,200.69,200.68,0.03643231]
[1738940890558,34.6738902,200.7,200.52,2.5374]
[1738940890750,34.6738902,200.66,200.52,2.5374]
[1738940890948,34.6738902,200.66,200.59,0.03355683]
[1738940891152,0.03674377,200.61,200.59,0.03355683]
[1738940891454,4.9827,200.6,200.59,0.03355683]
[1738940892153,5.01924377,200.61,200.59,0.03355683]
[1738940892455,0.03674377,200.61,200.59,0.03355683]
[1738940893252,4.9827,200.6,200.59,0.03355683]
[1738940893559,0.03674377,200.61,200.59,0.03355683]
[1738940893857,4.9827,200.6,200.59,5.683e-05]
[1738940894257,0.03674377,200.61,200.59,5.683e-05]
[1738940894758,4.9827,200.6,200.59,5.683e-05]
[1738940895150,39.6565902,200.6,200.59,5.683e-05]
[1738940895754,4.9827,200.6,200.59,5.683e-05]
[1738940896058,39.6565902,200.6,200.59,5.683e-05]
[1738940896560,34.6738902,200.6,200.43,4.2253]
[1738940896756,34.6738902,200.6,200.48,4.9857]
[1738940896958,4.9835,200.57,200.43,4.2253]
[1738940897157,34.6738902,200.7,200.49,34.6738902]
[1738940897352,34.6738902,200.7,200.58,4.9832]
[1738940897553,0.03809805,200.62,200.58,4.9832]
[1738940898058,4.9818,200.64,200.58,4.9832]
[1738940898059,4.9797,200.73,200.61,34.6738902]
[1738940898259,105.01075367,200.78,200.62,1.7388]
[1738940898659,34.6738902,200.82,200.65,34.6738902]
[1738940899362,0.03201441,200.76,200.71,0.03780399]
[1738940900558,4.9797,200.73,200.71,0.03780399]
[1738940901263,0.03201441,200.76,200.71,0.03780399]
[1738940902454,0.03201441,200.76,200.71,5.01770399]
[1738940902659,0.03201441,200.76,200.71,0.03780399]
[1738940903456,0.03201441,200.76,200.72,4.9798]
[1738940903856,0.03201441,200.76,200.71,0.03780399]
[1738940904059,0.03201441,200.76,200.72,3.98]
[1738940905565,4.9798,200.72,200.71,0.03780399]
[1738940905759,4.9798,200.72,200.71,3.99e-06]
[1738940907560,49.6438902,200.74,200.49,89.23717538]
[1738940907755,34.6738902,200.66,200.52,4.9847]
[1738940908057,4.9833,200.58,200.5,2.4172]
[1738940908264,34.6738902,200.66,200.5,2.4172]
[1738940908463,34.6738902,200.7,200.5,2.4172]
[1738940908763,0.03303798,200.61,200.56,0.03641462]
[1738940909065,0.03303798,200.61,200.53,34.6738902]
[1738940909254,34.6738902,200.74,200.57,34.6738902]
[1738940909456,1.8343,200.77,200.61,34.6738902]
[1738940909763,4.98,200.72,200.61,34.6738902]
[1738940909962,4.98,200.72,200.66,4.9812]
[1738940910162,1.8343,200.77,200.61,34.6738902]
[1738940910364,34.6738902,200.84,200.65,34.6738902]
[1738940910665,34.6738902,200.84,200.61,34.6738902]
[1738940910666,0.03292369,200.71,200.7,4.9803]
[1738940910856,4.9783,200.79,200.69,34.6738902]
[1738940911055,1.8274,200.86,200.69,34.6738902]
[1738940911254,1.8085,200.89,200.69,34.6738902]
[1738940911255,2.4252,200.95,200.69,34.6738902]
[1738940911461,1.8834,200.91,200.73,34.6738902]
[1738940911863,4.976,200.88,200.73,34.6738902]
[1738940912167,0.03684706,200.84,200.8,0.0350808]
[1738940912369,34.6738902,200.98,200.81,34.6738902]
[1738940912563,4.9747,200.93,200.82,2.4714]
[1738940912764,34.6738902,200.98,200.82,7.4485]
[1738940913063,4.9748,200.92,200.82,2.4714]
[1738940913265,34.6738902,200.98,200.82,2.4714]
[1738940913466,1.8834,200.99,200.82,2.4714]
[1738940913765,0.03559853,200.92,200.88,0.03180745]
[1738940914167,34.6738902,201.02,200.82,2.4714]
[1738940914466,0.03795324,200.92,200.88,0.03298708]
[1738940914865,34.6738902,201.02,200.88,4.9757]
[1738940915166,0.03593991,200.92,200.88,0.03526234]
[1738940915355,1.8415,201.04,200.88,34.6738902]
[1738940915760,34.6738902,201.02,200.82,2.4714]
[1738940916065,34.6738902,200.98,200.82,2.4714]
[1738940916661,0.03161222,200.92,200.88,0.03751708]
[1738940917563,4.9753,200.9,200.88,0.03751708]
[1738940918064,0.03161222,200.92,200.88,0.03751708]
[1738940919566,4.9756,200.89,200.88,1.708e-05]
[1738940920068,0.03161222,200.92,200.88,1.708e-05]
[1738940920468,5.00671222,200.92,200.88,1.708e-05]
[1738940920668,0.03161222,200.92,200.88,1.708e-05]
[1738940921069,0.03161222,200.92,200.88,4.97581708]
[1738940921372,0.03161222,200.92,200.88,1.708e-05]
[1738940921573,4.9735,200.98,200.91,4.9751]
[1738940921873,4.9735,200.98,200.89,34.6738902]
[1738940921874,36.4974902,201.08,200.89,34.6738902]
[1738940922062,34.6738902,201.08,200.93,34.6738902]
[1738940922262,98.6,201.1,200.93,34.6738902]
[1738940922466,34.6738902,201.16,200.97,34.6738902]
[1738940922668,34.6738902,201.16,201.01,34.6738902]
[1738940922867,0.03283272,201.07,201.03,0.03555139]
[1738940923273,34.6738902,201.12,200.93,34.6738902]
[1738940923470,34.6738902,201.08,200.93,34.6738902]
[1738940923669,0.03763505,201.07,201.03,0.03288576]
[1738940923870,34.6738902,201.04,200.9,3.796]
[1738940924071,34.6738902,201.0,200.81,34.6738902]
[1738940924271,34.6738902,201.04,200.88,4.9757]
[1738940924569,34.6738902,201.04,200.82,3.3509]
[1738940924770,1.7302,201.03,200.82,3.3509]
[1738940925169,0.03787196,200.95,200.91,0.0365564]
[1738940925773,4.9746,200.93,200.91,0.0365564]
[1738940926575,0.03787196,200.95,200.91,0.0365564]
[1738940926776,34.6738902,201.09,200.91,0.0365564]
[1738940927075,34.6738902,201.01,200.91,0.0365564]
[1738940927272,4.975,200.92,200.85,34.6738902]
[1738940927466,34.6738902,201.01,200.85,34.6738902]
[1738940927868,34.6738902,201.05,200.91,4.9751]
[1738940928066,0.03248477,200.95,200.91,0.03535375]
[1738940928271,4.973,201.0,200.93,34.6738902]
[1738940928472,0.03658527,200.95,200.91,0.03311506]
[1738940928876,34.6738902,201.09,200.85,34.6738902]
[1738940929068,34.6738902,201.09,200.93,34.6738902]
[1738940929069,0.0348832,200.95,200.93,34.6738902]
[1738940929371,1.7357,201.11,200.94,1.6762]
[1738940929875,4.9712,201.07,200.97,34.6738902]
[1738940930076,1.7357,201.11,200.97,34.6738902]
[1738940930277,34.6738902,201.14,200.97,34.6738902]
[1738940930471,0.03459288,201.06,201.02,0.03545176]
[1738940930673,34.70848308,201.06,201.02,5.176e-05]
[1738940930975,4.9721,201.03,201.02,5.176e-05]
[1738940931673,0.03459288,201.06,201.02,5.176e-05]
[1738940932466,4.9706,201.1,201.02,5.176e-05]
[1738940932868,34.6738902,201.19,201.02,5.176e-05]
[1738940933075,34.6738902,201.15,201.01,34.6738902]
[1738940933474,34.6738902,201.15,201.0,4.9726]
[1738940933780,0.0357391,201.1,201.06,9.838e-05]
[1738940933973,34.6738902,201.11,200.98,2.424]
[1738940934173,34.6738902,201.15,200.98,2.424]
[1738940934674,34.6738902,201.11,200.98,2.424]
[1738940934876,34.6738902,201.07,201.04,3.597e-05]
[1738940935078,34.6738902,201.07,200.85,34.6738902]
[1738940935274,34.6738902,200.98,200.84,3.8703]
[1738940935475,4.9744,200.94,200.84,8.847]
[1738940935675,34.6738902,201.03,200.84,3.8703]
[1738940936078,4.9732,200.99,200.89,4.9755]
[1738940936274,0.03158616,200.96,200.91,0.03378198]
[1738940936579,4.9741,200.95,200.91,0.03378198]
[1738940936777,0.03158616,200.96,200.91,0.03378198]
[1738940936980,34.6738902,200.95,200.91,8.198e-05]
[1738940937171,4.9747,200.93,200.91,8.198e-05]
[1738940938780,36.3443902,200.95,200.73,37.1002902]
[1738940938979,34.6738902,200.83,200.73,2.4264]
[1738940939378,4.978,200.8,200.73,2.4264]
[1738940939573,34.6738902,200.91,200.73,37.1002902]
[1738940939781,36.3443902,200.95,200.78,4.9781]
[1738940939978,36.3443902,200.95,200.77,34.6738902]
[1738940940183,0.03291624,200.84,200.8,0.03499821]
[1738940940482,36.3443902,200.95,200.77,34.6738902]
[1738940940683,4.9771,200.83,200.77,34.6738902]
[1738940940990,0.03589587,200.84,200.8,0.03522512]
[1738940941383,4.9758,200.89,200.82,4.9773]
[1738940941583,34.6738902,200.99,200.81,34.6738902]
[1738940941784,4.9734,200.98,200.85,34.6738902]
[1738940941984,34.6738902,201.03,200.89,39.6493902]
[1738940942181,3.2072,201.05,200.89,34.6738902]
[1738940942385,1.5919,201.05,200.89,34.6738902]
[1738940942585,1.5919,201.05,200.92,4.9748]
[1738940942793,0.03583887,200.99,200.95,0.03239605]
[1738940943987,1.5919,201.12,200.98,34.6738902]
[1738940944187,34.6738902,201.11,200.95,0.03239605]
[1738940944388,34.6738902,201.11,200.94,34.6738902]
[1738940944784,34.6738902,201.07,200.93,1.6335]
[1738940945088,0.03795788,201.05,201.0,3.077e-05]
[1738940946285,1.703,201.18,201.03,34.6738902]
[1738940946686,1.703,201.18,201.07,4.971]
[1738940946888,34.6738902,201.24,201.03,34.6738902]
[1738940947083,34.6738902,201.24,201.0,34.6738902]
[1738940947084,36.3768902,201.24,201.07,34.6738902]
[1738940947290,9.9252,201.42,201.11,34.6738902]
[1738940947490,0.03834838,201.15,201.11,0.03294534]
[1738940947791,3.3385,201.38,201.07,34.6738902]
[1738940947792,18.3085,201.38,201.07,34.6738902]
[1738940947987,0.03714824,201.15,201.11,0.03718622]
[1738940948187,4.9694,201.14,201.11,0.03718622]
[1738940948387,34.6738902,201.22,201.11,0.03718622]
[1738940948588,0.03797958,201.15,201.11,0.03718622]
[1738940948787,4.9699,201.12,201.11,0.03718622]
[1738940949290,4.9699,201.12,201.11,8.622e-05]
[1738940949698,0.03797958,201.15,201.11,8.622e-05]
[1738940950693,4.9699,201.12,201.11,8.622e-05]
[1738940953391,0.03797958,201.15,201.11,8.622e-05]
[1738940954094,4.9699,201.13,201.11,8.622e-05]
[1738940954297,0.03797958,201.15,201.11,8.622e-05]
[1738940954800,4.9699,201.12,201.11,8.622e-05]
[1738940955097,4.9729,201.0,200.96,2.2967]
[1738940955303,34.6738902,201.09,200.96,2.2967]
[1738940955494,34.6738902,201.13,200.96,2.2967]
[1738940955690,1.6212,201.16,200.98,34.6738902]
[1738940955691,4.9711,201.07,200.98,34.6738902]
[1738940955890,34.6738902,201.17,201.02,34.6738902]
[1738940956096,4.9697,201.13,201.02,34.6738902]
[1738940956296,2.289e-05,201.05,201.04,4.9718]
[1738940956494,1.647,201.21,201.04,34.6738902]
[1738940956697,4.9691,201.16,201.05,1.6131]
[1738940956902,1.647,201.21,201.09,4.9705]
[1738940957099,36.3208902,201.21,201.06,1.5981]
[1738940957404,34.6738902,201.17,201.05,1.6131]
[1738940957603,0.03500012,201.16,201.11,0.03406401]
[1738940958800,0.03500012,201.16,201.13,34.6738902]
[1738940959507,0.03500012,201.16,201.11,0.03406401]
[1738940960399,4.9699,201.12,201.11,6.401e-05]
[1738940961010,4.9693,201.15,201.11,6.401e-05]
[1738940961197,0.03500012,201.16,201.11,6.401e-05]
[1738940961602,4.9699,201.12,201.11,6.401e-05]
[1738940964202,39.6437902,201.12,201.11,6.401e-05]
[1738940964406,34.6738902,201.12,200.96,2.2967]
[1738940964610,34.6738902,201.08,200.96,2.2967]
[1738940964907,34.6738902,201.08,200.9,34.6738902]
[1738940965105,34.6738902,201.04,200.87,1.734]
[1738940965313,1.6509,201.03,200.87,1.734]
[1738940965513,34.6738902,201.0,200.87,1.734]
[1738940965710,0.03231817,200.98,200.93,0.03770502]
[1738940965913,4.9743,200.94,200.93,0.03770502]
[1738940966209,4.9743,200.94,200.93,5.02e-06]
[1738940966602,34.6738902,200.91,200.81,6.7722636]
[1738940966811,34.6738902,200.87,200.81,6.7722636]
[1738940967008,34.6738902,200.87,200.75,2.365]
[1738940967208,4.9769,200.84,200.75,2.365]
[1738940967501,1.7423,200.9,200.82,4.9773]
[1738940968004,0.0352103,200.88,200.78,34.6738902]
[1738940968204,0.0352103,200.88,200.82,34.6738902]
[1738940968408,0.0352103,200.88,200.84,0.03777876]
[1738940968605,1.7423,200.98,200.86,34.6738902]
[1738940968810,1.6235,201.02,200.9,34.6738902]
[1738940969010,4.9732,200.99,200.9,34.6738902]
[1738940969207,0.03496126,200.94,200.9,34.6738902]
[1738940969408,0.03496126,200.94,200.85,1.592]
[1738940969608,0.03496126,200.94,200.81,1.7131]
[1738940969809,0.03496126,200.94,200.9,4.95e-06]
[1738940970010,1.601,200.96,200.81,1.7131]
[1738940970612,4.9749,200.92,200.81,1.7131]
[1738940970909,1.601,200.96,200.81,1.7131]
[1738940971111,0.03675098,200.89,200.84,0.0359091]
[1738940972513,4.9761,200.87,200.84,0.0359091]
[1738940972714,0.03675098,200.89,200.84,0.0359091]
[1738940973415,4.9765,200.85,200.84,9.1e-06]
[1738940974312,0.03675098,200.89,200.84,9.1e-06]
[1738940974711,0.03675098,200.89,200.86,4.9761]
[1738940975013,0.03675098,200.89,200.86,34.6738902]
[1738940975420,0.03675098,200.89,200.88,4.9758]
[1738940975614,1.6482,201.01,200.86,34.6738902]
[1738940976011,1.6482,201.01,200.85,1.7254]
[1738940976212,34.6738902,200.99,200.8,34.6738902]
[1738940976409,34.6738902,200.95,200.8,39.6516902]
[1738940976608,34.6738902,200.95,200.76,38.1085902]
[1738940976912,14.97,200.87,200.85,6.678e-05]
[1738940977115,14.97,200.87,200.64,34.6738902]
[1738940977116,36.3220902,200.86,200.64,34.6738902]
[1738940977420,34.6738902,200.85,200.64,34.6738902]
[1738940977611,34.6738902,200.85,200.61,1.7254]
[1738940977612,1.6482,200.86,200.72,34.6738902]
[1738940978011,1.6482,200.86,200.75,4.9788]
[1738940978216,4.9779,200.8,200.72,34.6738902]
[1738940978417,4.9779,200.8,200.77,0.03248124]
[1738940978716,0.03666246,200.81,200.77,0.03248124]
[1738940978918,1.5938,200.92,200.8,34.6738902]
[1738940979217,4.9747,200.93,200.84,34.6738902]
[1738940979420,34.6738902,201.03,200.84,34.6738902]
[1738940979614,34.6738902,201.03,200.88,34.6738902]
[1738940980317,0.03180633,200.98,200.93,0.03699912]
[1738940980516,0.03180633,200.98,200.93,9.912e-05]
[1738940980812,4.9743,200.94,200.93,9.912e-05]
[1738940981217,1.5938,200.98,200.93,9.912e-05]
[1738940981611,0.03193821,200.98,200.93,3.98009912]
[1738940982111,0.03193821,200.98,200.93,9.912e-05]
[1738940982514,4.9743,200.94,200.93,9.912e-05]
[1738940983119,1.7379,200.97,200.93,9.912e-05]
[1738940984116,1.7379,200.97,200.8,34.6738902]
[1738940984316,34.6738902,200.95,200.79,2.3486]
[1738940984720,4.9758,200.88,200.8,34.6738902]
[1738940984924,1.7379,200.97,200.8,34.6738902]
[1738940985221,4.9754,200.9,200.85,4.9763]
[1738940985422,0.03733935,200.91,200.86,0.03785349]
[1738940985620,34.6738902,201.07,200.88,34.6738902]
[1738940985923,34.6738902,201.07,200.92,34.6738902]
[1738940986326,1.6141,201.09,200.92,34.6738902]
[1738940986623,70.22489263,201.1,200.96,34.6738902]
[1738940986821,70.22489263,201.1,200.9,34.6738902]
[1738940987021,0.03484959,201.03,200.98,0.03674303]
[1738940987222,0.03484959,201.03,200.98,4.303e-05]
[1738940987422,4.9731,200.99,200.98,4.303e-05]
[1738940989022,39.6469902,200.99,200.98,4.303e-05]
[1738940989229,4.9764,200.86,200.81,6.616]
[1738940989620,34.6738902,200.95,200.81,1.6387]
[1738940990421,34.6738902,200.91,200.76,34.6738902]
[1738940990725,4.9761,200.87,200.75,1.6552]
[1738940990929,34.6738902,200.91,200.75,1.6552]
[1738940991125,49.6438902,200.91,200.75,1.6552]
[1738940991325,34.6738902,200.83,200.72,2.2262]
[1738940991525,34.6738902,200.83,200.66,34.6738902]
[1738940991731,1.6752,200.82,200.66,34.6738902]
[1738940992022,0.03812783,200.8,200.75,0.03373186]
[1738940992824,4.9788,200.76,200.75,3.186e-05]
[1738940994822,49.6438902,200.79,200.61,2.2262]
[1738940995130,34.6738902,200.74,200.61,2.2262]
[1738940995428,4.9828,200.6,200.55,1.5817]
[1738940995624,34.6738902,200.74,200.56,4.9837]
[1738940995931,4.9807,200.69,200.55,1.5817]
[1738940996128,34.6738902,200.74,200.63,0.03747741]
[1738940996129,0.03746196,200.67,200.63,0.03747741]
[1738940996529,4.9818,200.64,200.63,0.03747741]
[1738940996929,0.03746196,200.67,200.63,0.03747741]
[1738940997225,0.03746196,200.67,200.51,2.3882]
[1738940997430,34.6738902,200.66,200.51,2.3882]
[1738940997629,4.9821,200.63,200.51,2.3882]
[1738940997829,5.38,200.83,200.62,4.9822]
[1738940998033,5.38,200.83,200.56,34.6738902]
[1738940998327,34.6738902,200.74,200.56,34.6738902]
[1738940998530,0.03776843,200.7,200.66,0.03763099]
[1738940999033,4.981,200.67,200.66,0.03763099]
[1738940999430,0.03776843,200.7,200.66,0.03763099]
[1738941000530,4.981,200.67,200.66,3.099e-05]
[1738941001130,0.03776843,200.7,200.66,3.099e-05]
[1738941001530,0.03776843,200.7,200.66,34.67392119]
[1738941001730,4.9782,200.79,200.66,37.24392119]
[1738941001931,1.7437,200.88,200.73,34.6738902]
[1738941002127,1.7437,200.88,200.69,34.6738902]
[1738941002332,34.6738902,200.81,200.67,1.692]
[1738941002532,34.6738902,200.85,200.68,34.6738902]
[1738941002733,1.7087,200.87,200.73,4.9793]
[1738941002932,0.03538153,200.79,200.74,2.72e-05]
[1738941003328,0.03538153,200.79,200.67,1.692]
[1738941003533,0.03538153,200.79,200.72,34.6738902]
[1738941004129,1.7426,200.92,200.76,34.6738902]
[1738941004338,1.6899,200.94,200.76,34.6738902]
[1738941004635,5.38,200.99,200.8,34.6738902]
[1738941004834,5.38,200.99,200.84,34.6738902]
[1738941005033,1.7426,201.0,200.84,34.6738902]
[1738941005231,4.0936,201.02,200.84,34.6738902]
[1738941005430,0.03379946,200.94,200.89,0.03502112]
[1738941005638,0.03379946,200.94,200.9,4.9753]
[1738941005940,5.36,201.17,200.92,34.6738902]
[1738941006236,4.9744,200.94,200.88,34.6738902]
[1738941006436,34.6738902,201.03,200.88,34.6738902]
[1738941006639,4.9748,200.92,200.85,4.9764]
[1738941006838,34.6738902,200.99,200.81,1.7128]
[1738941007040,0.03237969,200.91,200.88,34.6738902]
[1738941007334,34.6738902,201.08,200.88,34.6738902]
[1738941007530,34.6738902,201.08,200.92,34.6738902]
[1738941008133,4.9738,200.97,200.89,6.705]
[1738941008337,0.03279407,201.02,200.98,0.0329115]
[1738941008838,0.03314766,201.02,200.98,9.934e-05]
[1738941009336,4.9731,200.99,200.98,9.934e-05]
[1738941010837,5.00564766,201.02,200.98,9.934e-05]
[1738941011038,0.03314766,201.02,200.98,9.934e-05]
[1738941012039,4.9731,200.99,200.98,9.934e-05]
[1738941012246,0.03314766,201.02,200.98,9.934e-05]
[1738941012538,4.9731,200.99,200.98,9.934e-05]
[1738941012743,0.03314766,201.02,200.98,9.934e-05]
[1738941013131,5.00554766,201.02,200.98,9.934e-05]
[1738941013330,0.03314766,201.02,200.98,9.934e-05]
[1738941013639,4.973,201.0,200.98,9.934e-05]
[1738941013837,0.03314766,201.02,200.98,9.934e-05]
[1738941014636,4.9731,200.99,200.98,9.934e-05]
[1738941015637,0.03314766,201.02,200.98,9.934e-05]
[1738941016337,4.9731,200.99,200.98,9.934e-05]
[1738941017143,49.6438902,201.0,200.81,5.7375]
[1738941017344,34.6738902,200.98,200.81,5.7375]
[1738941018343,34.6738902,200.98,200.86,4.9763]
[1738941018549,0.0321007,200.92,200.87,0.03725723]
[1738941018848,38.7801902,201.04,200.92,4.9748]
[1738941019145,1.6553,201.05,200.88,34.6738902]
[1738941019341,1.5874,201.13,200.92,34.6738902]
[1738941019541,49.6438902,201.1,200.93,3.2791]
[1738941019750,34.6738902,201.03,200.93,3.2791]
[1738941020039,0.03761769,201.0,200.96,0.03789579]
[1738941020644,34.6738902,201.07,200.96,0.03789579]
[1738941021039,4.9732,200.99,200.93,3.2791]
[1738941021240,34.6738902,201.07,200.93,3.2791]
[1738941021436,34.6738902,201.03,200.84,34.6738902]
[1738941021635,34.6738902,201.03,200.85,1.6541]
[1738941021842,0.03416339,200.96,200.91,0.03528483]
[1738941022044,4.9748,200.92,200.91,0.03528483]